fUST/lending_fUST_20250924
["ID","MTS","AMOUNT","RATE_DAILY","PERIOD"]
[387398424,1758713442226,-302.54622906,0.00019467,2]
[387398425,1758713442236,-459.86952727,0.00019473,2]
[387398426,1758713442246,-500.0,0.00019473,2]
[387398427,1758713442256,-500.0,0.00019473,2]
[387398428,1758713442265,-500.0,0.00019473,2]
[387398429,1758713442274,-834.78,0.000195,2]
[387398430,1758713442285,-302.54622906,0.00019656,2]
[387398431,1758713442295,-480.0,0.00019726,2]
[387398432,1758713442307,-480.0,0.00019726,2]
[387398433,1758713442316,-480.0,0.00019726,2]
[387398434,1758713442327,-480.0,0.00019726,2]
[387398435,1758713442336,-480.0,0.00019726,2]
[387398436,1758713442346,-480.0,0.00019726,2]
[387398437,1758713442355,-480.0,0.00019726,2]
[387398438,1758713442365,-480.0,0.00019726,2]
[387398439,1758713442374,-480.0,0.00019726,2]
[387398440,1758713442383,-480.0,0.00019726,2]
[387398441,1758713442392,-480.0,0.00019726,2]
[387398442,1758713442402,-480.0,0.00019726,2]
[387398443,1758713442411,-480.0,0.00019726,2]
[387398444,1758713442420,-480.0,0.00019726,2]
[387398445,1758713442430,-334.27914084,0.00019726,2]
[387398446,1758713442439,-480.0,0.00019726,2]
[387398447,1758713442449,-480.0,0.00019726,2]
[387398448,1758713442458,-480.0,0.00019726,2]
[387398449,1758713442468,-480.0,0.00019726,2]
[387398450,1758713442479,-480.0,0.00019726,2]
[387398451,1758713442488,-2166.21,0.00019726,2]
[387398452,1758713442499,-480.0,0.00019726,2]
[387398453,1758713442509,-480.0,0.00019726,2]
[387398454,1758713442519,-480.0,0.00019726,2]
[387398455,1758713442528,-616.49,0.00019726,2]
[387398456,1758713442608,-480.0,0.00019726,2]
[387398457,1758713442619,-480.0,0.00019726,2]
[387398458,1758713442630,-480.0,0.00019726,2]
[387398459,1758713442640,-480.0,0.00019726,2]
[387398460,1758713442650,-480.0,0.00019726,2]
[387398461,1758713442660,-1386.22,0.00019726,2]
[387398462,1758713442669,-480.0,0.00019726,2]
[387398463,1758713442679,-611.99,0.00019726,2]
[387398464,1758713442688,-480.0,0.00019726,2]
[387398465,1758713442698,-654.45,0.00019726,2]
[387398466,1758713442708,-480.0,0.00019726,2]
[387398467,1758713442717,-480.0,0.00019726,2]
[387398468,1758713442727,-546.04162038,0.00019726,2]
[387398469,1758713442737,-731.18,0.00019726,2]
[387398470,1758713442746,-940.74,0.00019726,2]
[387398471,1758713442756,-749.28,0.00019726,2]
[387398472,1758713442766,-480.0,0.00019726,2]
[387398473,1758713442776,-480.0,0.00019726,2]
[387398474,1758713442785,-484.20275059,0.00019726,2]
[387398475,1758713442795,-480.0,0.00019726,2]
[387398476,1758713442805,-480.0,0.00019726,2]
[387398477,1758713442815,-699.16,0.00019726,2]
[387398478,1758713442825,-480.0,0.00019726,2]
[387398479,1758713442834,-480.0,0.00019726,2]
[387398480,1758713442843,-480.0,0.00019726,2]
[387398481,1758713442853,-480.0,0.00019726,2]
[387398482,1758713442862,-480.0,0.00019726,2]
[387398483,1758713442871,-3215.17,0.00019726,2]
[387398484,1758713442881,-480.0,0.00019726,2]
[387398485,1758713442890,-480.0,0.00019726,2]
[387398486,1758713442900,-480.0,0.00019726,2]
[387398487,1758713442909,-480.0,0.00019726,2]
[387398488,1758713442918,-480.0,0.00019726,2]
[387398489,1758713442928,-480.0,0.00019726,2]
[387398490,1758713442937,-480.0,0.00019726,2]
[387398491,1758713442947,-480.0,0.00019726,2]
[387398492,1758713442956,-480.0,0.00019726,2]
[387398493,1758713442965,-480.0,0.00019726,2]
[387398494,1758713442974,-480.0,0.00019726,2]
[387398495,1758713442984,-718.36,0.00019726,2]
[387398496,1758713442993,-1295.05,0.00019726,2]
[387398497,1758713443003,-480.0,0.00019726,2]
[387398498,1758713443012,-1937.4,0.00019726,2]
[387398499,1758713443021,-480.0,0.00019726,2]
[387398500,1758713443031,-480.0,0.00019726,2]
[387398501,1758713443040,-480.0,0.00019726,2]
[387398502,1758713443050,-537.11,0.00019726,2]
[387398503,1758713443059,-480.0,0.00019726,2]
[387398504,1758713443069,-480.0,0.00019726,2]
[387398505,1758713443079,-480.0,0.00019726,2]
[387398506,1758713443089,-480.0,0.00019726,2]
[387398507,1758713443099,-480.0,0.00019726,2]
[387398508,1758713443109,-480.0,0.00019726,2]
[387398509,1758713443120,-549.91,0.00019726,2]
[387398510,1758713443129,-630.25,0.00019772,2]
[387398511,1758713443139,-453.8193436,0.00019845,4]
[387398513,1758713443148,-158.60574985,0.00019847,2]
[387398515,1758713443158,-2799.06087589,0.000199,2]
[387398517,1758713443167,-414.0,0.00019902,2]
[387398518,1758713443178,-301.0,0.00019902,2]
[387398520,1758713443187,-300.0,0.00019902,2]
[387398522,1758713443197,-300.0,0.00019902,2]
[387398524,1758713443207,-420.0,0.00019902,2]
[387398526,1758713443216,-392.81426608,0.00019921,2]
[387398527,1758713443226,-1000.0,0.00019921,2]
[387398528,1758713443235,-499.15109246,0.0002,2]
[387398529,1758713443244,-480.0,0.0002,2]
[387398530,1758713443253,-480.0,0.0002,2]
[387398531,1758713443262,-480.0,0.0002,2]
[387398533,1758713443272,-480.0,0.0002,2]
[387398534,1758713443281,-480.0,0.0002,2]
[387398535,1758713443291,-405.5850292,0.0002,2]
[387398536,1758713443301,-480.0,0.0002,2]
[387398537,1758713443310,-480.0,0.0002,2]
[387398538,1758713443320,-480.0,0.0002,2]
[387398539,1758713443329,-480.0,0.0002,2]
[387398540,1758713443338,-480.0,0.0002,2]
[387398541,1758713443347,-480.0,0.0002,2]
[387398542,1758713443357,-480.0,0.0002,2]
[387398543,1758713443366,-480.0,0.0002,2]
[387398544,1758713443374,-480.0,0.0002,2]
[387398545,1758713443384,-480.0,0.0002,2]
[387398546,1758713443394,-2166.21,0.0002,2]
[387398548,1758713443403,-480.0,0.0002,2]
[387398549,1758713443412,-480.0,0.0002,2]
[387398552,1758713443424,-616.49,0.0002,2]
[387398554,1758713443438,-480.0,0.0002,2]
[387398557,1758713443451,-480.0,0.0002,2]
[387398558,1758713443465,-480.0,0.0002,2]
[387398560,1758713443476,-592.80162402,0.0002,2]
[387398561,1758713443488,-480.0,0.0002,2]
[387398562,1758713443501,-1386.22,0.0002,2]
[387398563,1758713443513,-411.07,0.0002,2]
[387398564,1758713443526,-611.99,0.0002,2]
[387398565,1758713443541,-480.0,0.0002,2]
[387398566,1758713443554,-654.45,0.0002,2]
[387398567,1758713443567,-480.0,0.0002,2]
[387398568,1758713443581,-480.0,0.0002,2]
[387398569,1758713443593,-731.18,0.0002,2]
[387398570,1758713443606,-940.74,0.0002,2]
[387398571,1758713443618,-749.28,0.0002,2]
[387398572,1758713443630,-480.0,0.0002,2]
[387398574,1758713443642,-480.0,0.0002,2]
[387398575,1758713443655,-480.0,0.0002,2]
[387398576,1758713443668,-480.0,0.0002,2]
[387398577,1758713443679,-699.16,0.0002,2]
[387398578,1758713443690,-480.0,0.0002,2]
[387398579,1758713443701,-480.0,0.0002,2]
[387398580,1758713443713,-480.0,0.0002,2]
[387398581,1758713443725,-480.0,0.0002,2]
[387398582,1758713443738,-3215.17,0.0002,2]
[387398584,1758713443752,-480.0,0.0002,2]
[387398586,1758713443765,-340.38828872,0.0002,2]
[387398587,1758713443778,-322.97889396,0.0002,2]
[387398588,1758713443790,-462.18141502,0.0002,2]
[387398589,1758713443803,-480.0,0.0002,2]
[387398590,1758713443813,-480.0,0.0002,2]
[387398591,1758713443823,-480.0,0.0002,2]
[387398592,1758713443833,-480.0,0.0002,2]
[387398593,1758713443845,-480.0,0.0002,2]
[387398594,1758713443861,-480.0,0.0002,2]
[387398595,1758713443874,-718.36,0.0002,2]
[387398596,1758713443885,-1295.05,0.0002,2]
[387398597,1758713443896,-480.0,0.0002,2]
[387398598,1758713443907,-1937.4,0.0002,2]
[387398600,1758713443920,-1680.0,0.0002,2]
[387398601,1758713443932,-480.0,0.0002,2]
[387398603,1758713443943,-480.0,0.0002,2]
[387398605,1758713443954,-480.0,0.0002,2]
[387398606,1758713443964,-537.11,0.0002,2]
[387398607,1758713443975,-480.0,0.0002,2]
[387398608,1758713443986,-480.0,0.0002,2]
[387398609,1758713443998,-480.0,0.0002,2]
[387398610,1758713444008,-480.0,0.0002,2]
[387398611,1758713444019,-480.0,0.0002,2]
[387398612,1758713444030,-480.0,0.0002,2]
[387398613,1758713444040,-549.91,0.0002,2]
[387398614,1758713444051,-187.18132043,0.00020014,2]
[387398615,1758713444063,-1000.0,0.00020021,2]
[387398616,1758713444074,-1000.0,0.00020021,2]
[387398617,1758713444084,-1000.0,0.00020021,2]
[387398618,1758713444095,-453.8193436,0.00020034,4]
[387398619,1758713444106,-630.25,0.00020046,2]
[387398620,1758713444118,-602.34829988,0.00020196,2]
[387398621,1758713444130,-155.31133584,0.00020223,4]
[387398622,1758713444141,-480.0,0.00020273,2]
[387398623,1758713444151,-150.69,0.00020273,2]
[387398624,1758713444164,-318.90125969,0.00020273,2]
[387398625,1758713444176,-480.0,0.00020273,2]
[387398626,1758713444188,-480.0,0.00020273,2]
[387398627,1758713444199,-480.0,0.00020273,2]
[387398628,1758713444213,-480.0,0.00020273,2]
[387398629,1758713444224,-480.0,0.00020273,2]
[387398630,1758713444236,-480.0,0.00020273,2]
[387398631,1758713444248,-480.0,0.00020273,2]
[387398632,1758713444260,-480.0,0.00020273,2]
[387398633,1758713444271,-480.0,0.00020273,2]
[387398634,1758713444282,-480.0,0.00020273,2]
[387398635,1758713444295,-2166.21,0.00020273,2]
[387398636,1758713444306,-480.0,0.00020273,2]
[387398637,1758713444317,-480.0,0.00020273,2]
[387398638,1758713444328,-616.49,0.00020273,2]
[387398639,1758713444339,-480.0,0.00020273,2]
[387398640,1758713444350,-480.0,0.00020273,2]
[387398641,1758713444361,-480.0,0.00020273,2]
[387398642,1758713444372,-1386.22,0.00020273,2]
[387398643,1758713444383,-611.99,0.00020273,2]
[387398644,1758713444394,-480.0,0.00020273,2]
[387398645,1758713444405,-654.45,0.00020273,2]
[387398646,1758713444416,-480.0,0.00020273,2]
[387398647,1758713444525,-731.18,0.00020273,2]
[387398648,1758713444542,-940.74,0.00020273,2]
[387398649,1758713444554,-749.28,0.00020273,2]
[387398650,1758713444564,-480.0,0.00020273,2]
[387398651,1758713444573,-480.0,0.00020273,2]
[387398652,1758713444583,-480.0,0.00020273,2]
[387398653,1758713444592,-699.16,0.00020273,2]
[387398654,1758713444601,-480.0,0.00020273,2]
[387398655,1758713444611,-386.24595197,0.00020273,2]
[387398656,1758713444623,-480.0,0.00020273,2]
[387398657,1758713444633,-3215.17,0.00020273,2]
[387398658,1758713444642,-480.0,0.00020273,2]
[387398659,1758713444652,-480.0,0.00020273,2]
[387398660,1758713444661,-480.0,0.00020273,2]
[387398661,1758713444670,-480.0,0.00020273,2]
[387398662,1758713444680,-480.0,0.00020273,2]
[387398663,1758713444689,-482.72,0.00020273,2]
[387398664,1758713444698,-480.0,0.00020273,2]
[387398665,1758713444708,-718.36,0.00020273,2]
[387398666,1758713444718,-1295.05,0.00020273,2]
[387398667,1758713444727,-1937.4,0.00020273,2]
[387398668,1758713444736,-442.43,0.00020273,2]
[387398669,1758713444746,-480.0,0.00020273,2]
[387398670,1758713444756,-537.11,0.00020273,2]
[387398671,1758713444766,-523.65390046,0.00020273,2]
[387398672,1758713444775,-480.0,0.00020273,2]
[387398673,1758713444785,-480.0,0.00020273,2]
[387398674,1758713444794,-480.0,0.00020273,2]
[387398675,1758713444804,-480.0,0.00020273,2]
[387398676,1758713444814,-243.40218685,0.00020273,2]
[387398677,1758713444823,-549.91,0.00020273,2]
[387398678,1758713444833,-500.0,0.00020287,2]
[387398679,1758713444842,-630.25,0.0002032,2]
[387398680,1758713444853,-158.60574985,0.00020421,2]
[387398681,1758713444862,-1669.56,0.00020428,2]
[387398682,1758713444873,-1500.0,0.00020468,2]
[387398683,1758713444883,-457.43,0.000205,10]
[387398684,1758713444895,-480.0,0.00020547,2]
[387398685,1758713444904,-480.0,0.00020547,2]
[387398686,1758713444914,-480.0,0.00020547,2]
[387398687,1758713444923,-480.0,0.00020547,2]
[387398688,1758713444933,-480.0,0.00020547,2]
[387398689,1758713444943,-480.0,0.00020547,2]
[387398690,1758713444953,-480.0,0.00020547,2]
[387398691,1758713444962,-480.0,0.00020547,2]
[387398692,1758713444971,-2166.21,0.00020547,2]
[387398693,1758713444980,-480.0,0.00020547,2]
[387398694,1758713444990,-616.49,0.00020547,2]
[387398695,1758713445000,-480.0,0.00020547,2]
[387398696,1758713445009,-480.0,0.00020547,2]
[387398697,1758713445019,-1386.22,0.00020547,2]
[387398698,1758713445028,-611.99,0.00020547,2]
[387398699,1758713445038,-480.0,0.00020547,2]
[387398700,1758713445048,-654.45,0.00020547,2]
[387398701,1758713445058,-480.0,0.00020547,2]
[387398702,1758713445067,-731.18,0.00020547,2]
[387398703,1758713445077,-940.74,0.00020547,2]
[387398704,1758713445086,-749.28,0.00020547,2]
[387398705,1758713445095,-312.50812031,0.00020547,2]
[387398706,1758713445105,-480.0,0.00020547,2]
[387398707,1758713445114,-699.16,0.00020547,2]
[387398708,1758713445123,-480.0,0.00020547,2]
[387398709,1758713445133,-3215.17,0.00020547,2]
[387398710,1758713445142,-496.01,0.00020547,2]
[387398711,1758713445152,-462.1,0.00020547,2]
[387398712,1758713445161,-480.0,0.00020547,2]
[387398713,1758713445170,-480.0,0.00020547,2]
[387398714,1758713445190,-718.36,0.00020547,2]
[387398715,1758713445201,-1295.05,0.00020547,2]
[387398716,1758713445211,-1937.4,0.00020547,2]
[387398717,1758713445221,-480.0,0.00020547,2]
[387398718,1758713445231,-537.11,0.00020547,2]
[387398719,1758713445241,-480.0,0.00020547,2]
[387398720,1758713445251,-480.0,0.00020547,2]
[387398721,1758713445261,-480.0,0.00020547,2]
[387398722,1758713445271,-480.0,0.00020547,2]
[387398723,1758713445281,-549.91,0.00020547,2]
[387398724,1758713445290,-1500.0,0.00020568,2]
[387398725,1758713445301,-1500.0,0.00020568,2]
[387398726,1758713445311,-1500.0,0.00020568,2]
[387398727,1758713445321,-630.25,0.00020594,2]
[387398728,1758713445331,-500.0,0.00020777,2]
[387398729,1758713445343,-480.0,0.00020821,2]
[387398730,1758713445353,-480.0,0.00020821,2]
[387398731,1758713445363,-528.2,0.00020821,2]
[387398732,1758713445374,-2166.21,0.00020821,2]
[387398733,1758713445386,-480.0,0.00020821,2]
[387398734,1758713445396,-616.49,0.00020821,2]
[387398735,1758713445407,-517.0,0.00020821,2]
[387398736,1758713445418,-1386.22,0.00020821,2]
[387398737,1758713445427,-611.99,0.00020821,2]
[387398738,1758713445438,-654.45,0.00020821,2]
[387398739,1758713445448,-731.18,0.00020821,2]
[387398740,1758713445459,-940.74,0.00020821,2]
[387398741,1758713445468,-749.28,0.00020821,2]
[387398742,1758713445479,-480.0,0.00020821,2]
[387398743,1758713445489,-699.16,0.00020821,2]
[387398744,1758713445501,-3215.17,0.00020821,2]
[387398745,1758713445510,-480.0,0.00020821,2]
[387398746,1758713445520,-480.0,0.00020821,2]
[387398747,1758713445529,-718.36,0.00020821,2]
[387398748,1758713445540,-1295.05,0.00020821,2]
[387398749,1758713445557,-1937.4,0.00020821,2]
[387398750,1758713445566,-480.0,0.00020821,2]
[387398751,1758713445575,-537.11,0.00020821,2]
[387398752,1758713445585,-402.93738698,0.00020821,2]
[387398753,1758713445595,-480.0,0.00020821,2]
[387398754,1758713445605,-480.0,0.00020821,2]
[387398755,1758713445615,-480.0,0.00020821,2]
[387398756,1758713445625,-549.91,0.00020821,2]
[387398757,1758713445635,-630.25,0.00020868,2]
[387398758,1758713445644,-2799.06087571,0.00020972,2]
[387398759,1758713445654,-158.60574985,0.00020995,2]
[387398760,1758713445664,-151.0,0.00021,3]
[387398761,1758713445673,-2409.3931995,0.00021039,2]
[387398762,1758713445682,-350.0,0.00021064,2]
[387398763,1758713445691,-209.40437685,0.00021064,2]
[387398764,1758713445701,-350.0,0.00021064,2]
[387398765,1758713445710,-200.0,0.00021064,2]
[387398766,1758713445719,-200.0,0.00021064,2]
[387398767,1758713445729,-350.0,0.00021064,2]
[387398768,1758713445738,-350.0,0.00021064,2]
[387398769,1758713445748,-200.0,0.00021064,2]
[387398770,1758713445757,-350.0,0.00021064,2]
[387398771,1758713445766,-200.0,0.00021064,2]
[387398772,1758713445775,-350.0,0.00021064,2]
[387398773,1758713445784,-200.0,0.00021064,2]
[387398774,1758713445794,-350.0,0.00021064,2]
[387398775,1758713445806,-200.0,0.00021064,2]
[387398776,1758713445815,-350.0,0.00021064,2]
[387398777,1758713445824,-256.14491206,0.00021064,2]
[387398778,1758713445833,-500.0,0.00021064,2]
[387398779,1758713445843,-350.0,0.00021064,2]
[387398780,1758713445852,-500.0,0.00021064,2]
[387398781,1758713445861,-343.65648943,0.00021064,2]
[387398782,1758713445870,-500.0,0.00021064,2]
[387398783,1758713445880,-500.0,0.00021064,2]
[387398784,1758713445889,-500.0,0.00021064,2]
[387398785,1758713445898,-500.0,0.00021064,2]
[387398786,1758713445908,-500.0,0.00021064,2]
[387398787,1758713445917,-500.0,0.00021064,2]
[387398788,1758713445926,-500.0,0.00021064,2]
[387398789,1758713445935,-500.0,0.00021064,2]
[387398790,1758713445944,-500.0,0.00021064,2]
[387398791,1758713445953,-480.0,0.00021095,2]
[387398792,1758713445963,-480.0,0.00021095,2]
[387398793,1758713445972,-2166.21,0.00021095,2]
[387398794,1758713445981,-480.0,0.00021095,2]
[387398795,1758713445990,-616.49,0.00021095,2]
[387398796,1758713446000,-1386.22,0.00021095,2]
[387398797,1758713446009,-611.99,0.00021095,2]
[387398798,1758713446019,-654.45,0.00021095,2]
[387398799,1758713446028,-731.18,0.00021095,2]
[387398800,1758713446037,-940.74,0.00021095,2]
[387398801,1758713446046,-749.28,0.00021095,2]
[387398802,1758713446056,-480.0,0.00021095,2]
[387398803,1758713446065,-699.16,0.00021095,2]
[387398804,1758713446075,-3215.17,0.00021095,2]
[387398805,1758713446084,-480.0,0.00021095,2]
[387398806,1758713446093,-480.0,0.00021095,2]
[387398807,1758713446103,-718.36,0.00021095,2]
[387398808,1758713446112,-1295.05,0.00021095,2]
[387398809,1758713446121,-1937.4,0.00021095,2]
[387398810,1758713446130,-537.11,0.00021095,2]
[387398811,1758713446139,-480.0,0.00021095,2]
[387398812,1758713446148,-480.0,0.00021095,2]
[387398813,1758713446157,-480.0,0.00021095,2]
[387398814,1758713446166,-549.91,0.00021095,2]
[387398816,1758713446176,-847.95915998,0.00021116,2]
[387398818,1758713446185,-630.25,0.00021142,2]
[387398820,1758713446194,-588.5325414,0.00021258,2]
[387398821,1758713446203,-189.0127112,0.00021258,2]
[387398822,1758713446212,-586.1331603,0.00021258,2]
[387398823,1758713446222,-586.1331603,0.00021258,2]
[387398825,1758713446231,-189.0127112,0.00021258,2]
[387398827,1758713446240,-586.1331603,0.00021258,2]
[387398829,1758713446250,-189.0127112,0.00021258,2]
[387398830,1758713446260,-586.1331603,0.00021258,2]
[387398831,1758713446270,-160.0,0.00021277,2]
[387398833,1758713446279,-2675.30606382,0.00021289,3]
[387398834,1758713446289,-3060.52759353,0.00021307,2]
[387398835,1758713446299,-1000.0,0.00021325,2]
[387398836,1758713446309,-500.0,0.00021355,2]
[387398837,1758713446318,-2504.34,0.00021357,2]
[387398839,1758713446328,-480.0,0.00021369,2]
[387398841,1758713446338,-480.0,0.00021369,2]
[387398843,1758713446347,-2166.21,0.00021369,2]
[387398845,1758713446357,-480.0,0.00021369,2]
[387398846,1758713446367,-616.49,0.00021369,2]
[387398847,1758713446376,-1386.22,0.00021369,2]
[387398848,1758713446386,-611.99,0.00021369,2]
[387398849,1758713446395,-654.45,0.00021369,2]
[387398850,1758713446405,-731.18,0.00021369,2]
[387398851,1758713446415,-940.74,0.00021369,2]
[387398852,1758713446424,-749.28,0.00021369,2]
[387398853,1758713446434,-510.56186043,0.00021369,2]
[387398854,1758713446443,-699.16,0.00021369,2]
[387398855,1758713446453,-3215.17,0.00021369,2]
[387398856,1758713446462,-480.0,0.00021369,2]
[387398857,1758713446472,-480.0,0.00021369,2]
[387398858,1758713446481,-718.36,0.00021369,2]
[387398859,1758713446491,-1295.05,0.00021369,2]
[387398860,1758713446501,-1937.4,0.00021369,2]
[387398861,1758713446510,-537.11,0.00021369,2]
[387398862,1758713446520,-453.51129326,0.00021369,2]
[387398863,1758713446530,-480.0,0.00021369,2]
[387398864,1758713446546,-480.0,0.00021369,2]
[387398865,1758713446556,-549.91,0.00021369,2]
[387398866,1758713446566,-151.0,0.000214,3]
[387398867,1758713446576,-630.25,0.00021416,2]
[387398868,1758713446585,-500.0,0.00021544,2]
[387398869,1758713446595,-264.9032109,0.00021624,2]
[387398870,1758713446605,-480.0,0.00021643,2]
[387398871,1758713446614,-480.0,0.00021643,2]
[387398872,1758713446624,-2166.21,0.00021643,2]
[387398873,1758713446726,-480.0,0.00021643,2]
[387398874,1758713446746,-616.49,0.00021643,2]
[387398875,1758713446756,-1386.22,0.00021643,2]
[387398876,1758713446766,-611.99,0.00021643,2]
[387398877,1758713446775,-654.45,0.00021643,2]
[387398878,1758713446785,-731.18,0.00021643,2]
[387398879,1758713446794,-940.74,0.00021643,2]
[387398880,1758713446804,-749.28,0.00021643,2]
[387398881,1758713446814,-699.16,0.00021643,2]
[387398882,1758713446823,-3215.17,0.00021643,2]
[387398883,1758713446833,-480.0,0.00021643,2]
[387398884,1758713446842,-480.0,0.00021643,2]
[387398885,1758713446851,-718.36,0.00021643,2]
[387398886,1758713446860,-1295.05,0.00021643,2]
[387398887,1758713446870,-1937.4,0.00021643,2]
[387398888,1758713446879,-537.11,0.00021643,2]
[387398889,1758713446889,-480.0,0.00021643,2]
[387398890,1758713446898,-480.0,0.00021643,2]
[387398891,1758713446908,-549.91,0.00021643,2]
[387398892,1758713446919,-630.25,0.0002169,2]
[387398893,1758713446928,-587.0,0.0002171,2]
[387398894,1758713446937,-511.97124642,0.00021742,2]
[387398895,1758713446947,-500.0,0.00021742,2]
[387398896,1758713446956,-500.0,0.00021742,2]
[387398897,1758713446965,-500.0,0.0002176,2]
[387398898,1758713446974,-500.0,0.0002176,2]
[387398899,1758713446984,-500.0,0.0002176,2]
[387398900,1758713446994,-500.0,0.0002176,2]
[387398901,1758713447005,-500.0,0.0002176,2]
[387398902,1758713447016,-500.0,0.0002176,2]
[387398903,1758713447026,-516.27022145,0.0002176,2]
[387398904,1758713447035,-500.0,0.0002176,2]
[387398905,1758713447045,-500.0,0.0002176,2]
[387398906,1758713447056,-501.03977974,0.0002176,2]
[387398907,1758713447065,-500.0,0.0002176,2]
[387398909,1758713447074,-500.0,0.0002176,2]
[387398910,1758713447083,-500.0,0.0002176,2]
[387398911,1758713447092,-170.39552554,0.0002176,2]
[387398912,1758713447102,-500.0,0.0002176,2]
[387398913,1758713447111,-500.0,0.0002176,2]
[387398914,1758713447121,-500.0,0.0002176,2]
[387398915,1758713447130,-500.0,0.00021768,2]
[387398916,1758713447139,-500.0,0.00021768,2]
[387398917,1758713447151,-160.0,0.00021786,2]
[387398918,1758713447161,-151.0,0.000218,3]
[387398919,1758713447171,-160.0,0.00021804,2]
[387398920,1758713447180,-417.15472785,0.00021804,2]
[387398921,1758713447190,-532.2324375,0.00021804,2]
[387398922,1758713447199,-160.0,0.00021804,2]
[387398923,1758713447209,-233.62170814,0.00021804,2]
[387398924,1758713447219,-260.0,0.00021825,2]
[387398925,1758713447228,-1500.0,0.00021873,2]
[387398926,1758713447238,-377.04924282,0.00021883,2]
[387398927,1758713447248,-5415.71356418,0.00021883,2]
[387398928,1758713447258,-151.0,0.00021883,2]
[387398929,1758713447268,-151.0,0.00021883,2]
[387398930,1758713447277,-500.0,0.00021895,2]
[387398931,1758713447286,-500.54082936,0.00021895,2]
[387398932,1758713447296,-500.0,0.000219,2]
[387398933,1758713447307,-410.0,0.00021906,2]
[387398934,1758713447316,-500.0,0.00021909,2]
[387398935,1758713447326,-500.0,0.00021909,2]
[387398936,1758713447338,-500.0,0.00021909,2]
[387398937,1758713447348,-529.23636076,0.00021909,2]
[387398938,1758713447358,-525.60880324,0.00021909,2]
[387398939,1758713447367,-161.09003437,0.00021909,2]
[387398940,1758713447377,-500.0,0.00021909,2]
[387398941,1758713447386,-500.0,0.00021909,2]
[387398942,1758713447396,-500.0,0.00021909,2]
[387398943,1758713447405,-500.0,0.00021909,2]
[387398944,1758713447415,-500.0,0.00021909,2]
[387398945,1758713447424,-500.0,0.00021909,2]
[387398946,1758713447434,-501.17606149,0.00021909,2]
[387398947,1758713447443,-501.74539357,0.00021909,2]
[387398948,1758713447453,-626.34630305,0.00021909,2]
[387398949,1758713447462,-448.69437294,0.00021909,2]
[387398950,1758713447472,-500.0,0.00021909,2]
[387398951,1758713447481,-500.0,0.00021909,2]
[387398952,1758713447491,-500.0,0.00021909,2]
[387398953,1758713447500,-500.0,0.00021909,2]
[387398954,1758713447510,-500.0,0.00021909,2]
[387398955,1758713447519,-500.0,0.00021909,2]
[387398956,1758713447530,-509.6540446,0.00021909,2]